lending/lending_fUSD_20241115
["ID","MTS","AMOUNT","RATE_DAILY","PERIOD"]
[342287069,1731694273076,-500.0,9.797e-05,2]
[342287070,1731694273085,-500.0,9.797e-05,2]
[342287071,1731694273094,-500.0,9.797e-05,2]
[342287072,1731694273104,-4830.99,9.797e-05,2]
[342287073,1731694273113,-500.0,9.797e-05,2]
[342287074,1731694273123,-640.9,9.797e-05,2]
[342287075,1731694273132,-640.9,9.797e-05,2]
[342287076,1731694273142,-500.0,9.797e-05,2]
[342287077,1731694273151,-1268.43,9.797e-05,2]
[342287078,1731694273161,-500.0,9.797e-05,2]
[342287079,1731694273170,-500.0,9.797e-05,2]
[342287080,1731694273180,-500.0,9.797e-05,2]
[342287081,1731694273189,-500.0,9.797e-05,2]
[342287082,1731694273199,-500.0,9.797e-05,2]
[342287083,1731694273208,-500.0,9.797e-05,2]
[342287084,1731694273218,-3074.17,9.797e-05,2]
[342287085,1731694273227,-1482.6,9.797e-05,2]
[342287086,1731694273237,-500.0,9.797e-05,2]
[342287087,1731694273246,-855.59,9.797e-05,2]
[342287088,1731694273256,-500.0,9.797e-05,2]
[342287089,1731694273265,-500.0,9.797e-05,2]
[342287090,1731694273275,-1020.8,9.797e-05,2]
[342287091,1731694273284,-500.0,9.797e-05,2]
[342287092,1731694273295,-500.0,9.797e-05,2]
[342287093,1731694273305,-500.0,9.797e-05,2]
[342287094,1731694273314,-1908.07,9.797e-05,2]
[342287095,1731694273324,-500.0,9.797e-05,2]
[342287096,1731694273333,-1382.63,9.797e-05,2]
[342287097,1731694273343,-500.0,9.797e-05,2]
[342287098,1731694273352,-500.0,9.797e-05,2]
[342287099,1731694273362,-500.0,9.797e-05,2]
[342287100,1731694273372,-500.0,9.797e-05,2]
[342287101,1731694273382,-1931.56,9.797e-05,2]
[342287102,1731694273391,-1292.91,9.797e-05,2]
[342287103,1731694273401,-1292.91,9.797e-05,2]
[342287104,1731694273410,-500.0,9.797e-05,2]
[342287105,1731694273419,-500.0,9.797e-05,2]
[342287106,1731694273429,-663.56,9.797e-05,2]
[342287107,1731694273438,-1022.4,9.797e-05,2]
[342287108,1731694273447,-500.0,9.797e-05,2]
[342287109,1731694273457,-500.0,9.797e-05,2]
[342287110,1731694273466,-1470.93,9.797e-05,2]
[342287111,1731694273475,-500.0,9.797e-05,2]
[342287112,1731694273485,-1470.93,9.797e-05,2]
[342287113,1731694273494,-681.85,9.797e-05,2]
[342287114,1731694273503,-3295.15,9.797e-05,2]
[342287115,1731694273513,-2363.83,9.797e-05,2]
[342287116,1731694273522,-500.0,9.797e-05,2]
[342287117,1731694273531,-652.61,9.797e-05,2]
[342287118,1731694273541,-823.21,9.797e-05,2]
[342287119,1731694273551,-500.0,9.797e-05,2]
[342287120,1731694273560,-1052.67,9.797e-05,2]
[342287121,1731694273569,-2854.94,9.797e-05,2]
[342287122,1731694273578,-817.4,9.797e-05,2]
[342287123,1731694273588,-500.0,9.797e-05,2]
[342287124,1731694273597,-500.0,9.798e-05,2]
[342287125,1731694273606,-500.0,9.798e-05,2]
[342287126,1731694273616,-500.0,9.798e-05,2]
[342287127,1731694273625,-500.0,9.798e-05,2]
[342287128,1731694273635,-500.0,9.798e-05,2]
[342287129,1731694273644,-500.0,9.798e-05,2]
[342287130,1731694273654,-500.0,9.798e-05,2]
[342287131,1731694273664,-500.0,9.798e-05,2]
[342287132,1731694273673,-500.0,9.798e-05,2]
[342287133,1731694273683,-500.0,9.798e-05,2]
[342287134,1731694273692,-500.0,9.798e-05,2]
[342287135,1731694273702,-500.0,9.798e-05,2]
[342287136,1731694273711,-500.0,9.798e-05,2]
[342287137,1731694273721,-500.0,9.798e-05,2]
[342287138,1731694273730,-500.0,9.798e-05,2]
[342287139,1731694273740,-500.0,9.798e-05,2]
[342287140,1731694273749,-513.5780154,9.798e-05,2]
[342287141,1731694273759,-294.68686623,9.798e-05,2]
[342287142,1731694273768,-500.0,9.798e-05,2]
[342287143,1731694273778,-500.0,9.798e-05,2]
[342287144,1731694273787,-500.0,9.798e-05,2]
[342287145,1731694273796,-500.0,9.798e-05,2]
[342287146,1731694273806,-500.0,9.798e-05,2]
[342287147,1731694273816,-500.0,9.798e-05,2]
[342287148,1731694273825,-500.0,9.798e-05,2]
[342287149,1731694273835,-500.0,9.798e-05,2]
[342287150,1731694273844,-882.17,9.798e-05,2]
[342287151,1731694273854,-500.0,9.798e-05,2]
[342287152,1731694273863,-500.0,9.798e-05,2]
[342287153,1731694273872,-500.0,9.798e-05,2]
[342287154,1731694273880,-500.0,9.798e-05,2]
[342287155,1731694273890,-500.0,9.798e-05,2]
[342287156,1731694273899,-500.0,9.798e-05,2]
[342287157,1731694273909,-500.0,9.798e-05,2]
[342287158,1731694273918,-500.0,9.798e-05,2]
[342287159,1731694273927,-1519.16,9.798e-05,2]
[342287160,1731694273937,-500.0,9.798e-05,2]
[342287161,1731694273946,-993.42,9.798e-05,2]
[342287162,1731694273955,-500.0,9.798e-05,2]
[342287163,1731694273966,-500.0,9.798e-05,2]
[342287164,1731694273977,-500.0,9.798e-05,2]
[342287165,1731694273986,-500.0,9.798e-05,2]
[342287166,1731694273996,-500.0,9.798e-05,2]
[342287167,1731694274005,-1344.39,9.798e-05,2]
[342287168,1731694274015,-500.0,9.798e-05,2]
[342287169,1731694274024,-500.0,9.798e-05,2]
[342287170,1731694274033,-500.0,9.798e-05,2]
[342287171,1731694274041,-500.0,9.798e-05,2]
[342287172,1731694274054,-957.26,9.798e-05,2]
[342287173,1731694274064,-1742.35,9.798e-05,2]
[342287174,1731694274073,-500.0,9.798e-05,2]
[342287175,1731694274082,-500.0,9.798e-05,2]
[342287176,1731694274091,-500.0,9.798e-05,2]
[342287177,1731694274100,-500.0,9.798e-05,2]
[342287178,1731694274110,-834.02,9.798e-05,2]
[342287179,1731694274119,-500.0,9.798e-05,2]
[342287180,1731694274128,-297.8485057,9.798e-05,2]
[342287181,1731694274137,-500.0,9.798e-05,2]
[342287182,1731694274146,-2887.58,9.798e-05,2]
[342287183,1731694274155,-831.57,9.798e-05,2]
[342287184,1731694274164,-500.0,9.798e-05,2]
[342287185,1731694274173,-500.0,9.798e-05,2]
[342287186,1731694274182,-500.0,9.798e-05,2]
[342287187,1731694274192,-500.0,9.798e-05,2]
[342287188,1731694274201,-500.0,9.798e-05,2]
[342287189,1731694274210,-500.0,9.798e-05,2]
[342287190,1731694274220,-500.0,9.798e-05,2]
[342287191,1731694274229,-500.0,9.798e-05,2]
[342287192,1731694274238,-500.0,9.798e-05,2]
[342287193,1731694274247,-425.57632619,9.798e-05,2]
[342287194,1731694274256,-226.92409974,9.798e-05,2]
[342287195,1731694274265,-527.49,9.798e-05,2]
[342287196,1731694274273,-500.0,9.798e-05,2]
[342287197,1731694274282,-943.09,9.798e-05,2]
[342287198,1731694274291,-500.0,9.798e-05,2]
[342287199,1731694274303,-500.0,9.798e-05,2]
[342287200,1731694274312,-500.0,9.798e-05,2]
[342287201,1731694274321,-552.28,9.798e-05,2]
[342287202,1731694274330,-500.0,9.798e-05,2]
[342287203,1731694274340,-500.0,9.798e-05,2]
[342287204,1731694274348,-500.0,9.798e-05,2]
[342287205,1731694274358,-972.04,9.798e-05,2]
[342287206,1731694274367,-500.0,9.798e-05,2]
[342287207,1731694274376,-500.0,9.798e-05,2]
[342287208,1731694274385,-1154.27,9.798e-05,2]
[342287209,1731694274394,-220.07998379,9.798e-05,2]
[342287210,1731694274404,-500.0,9.798e-05,2]
[342287211,1731694274413,-500.0,9.798e-05,2]
[342287212,1731694274422,-500.0,9.798e-05,2]
[342287213,1731694274432,-500.0,9.798e-05,2]
[342287214,1731694274441,-500.0,9.798e-05,2]
[342287215,1731694274450,-1634.86,9.798e-05,2]
[342287216,1731694274459,-929.34,9.798e-05,2]
[342287217,1731694274468,-500.0,9.798e-05,2]
[342287218,1731694274478,-500.0,9.798e-05,2]
[342287219,1731694274487,-500.0,9.798e-05,2]
[342287220,1731694274496,-500.0,9.798e-05,2]
[342287221,1731694274506,-500.0,9.798e-05,2]
[342287222,1731694274515,-1111.11,9.798e-05,2]
[342287223,1731694274524,-2269.84,9.798e-05,2]
[342287224,1731694274534,-648.44,9.798e-05,2]
[342287225,1731694274543,-1193.04,9.798e-05,2]
[342287226,1731694274554,-500.0,9.798e-05,2]
[342287227,1731694274563,-500.0,9.798e-05,2]
[342287228,1731694274573,-500.0,9.798e-05,2]
[342287229,1731694274582,-500.0,9.798e-05,2]
[342287230,1731694274592,-500.0,9.798e-05,2]
[342287231,1731694274743,-500.0,9.798e-05,2]
[342287232,1731694274756,-500.0,9.798e-05,2]
[342287233,1731694274766,-500.0,9.798e-05,2]
[342287234,1731694274775,-532.27359042,9.798e-05,2]
[342287235,1731694274785,-795.14,9.798e-05,2]
[342287236,1731694274797,-500.0,9.798e-05,2]
[342287237,1731694274806,-500.0,9.798e-05,2]
[342287238,1731694274815,-500.0,9.798e-05,2]
[342287239,1731694274825,-875.23,9.798e-05,2]
[342287240,1731694274834,-500.0,9.798e-05,2]
[342287241,1731694274843,-500.0,9.798e-05,2]
[342287242,1731694274852,-500.0,9.798e-05,2]
[342287243,1731694274861,-776.24,9.798e-05,2]
[342287244,1731694274870,-500.0,9.798e-05,2]
[342287245,1731694274880,-500.0,9.798e-05,2]
[342287246,1731694274889,-793.62,9.798e-05,2]
[342287247,1731694274898,-500.0,9.798e-05,2]
[342287248,1731694274908,-1064.95,9.798e-05,2]
[342287249,1731694274919,-1114.32,9.798e-05,2]
[342287250,1731694274928,-964.09,9.798e-05,2]
[342287251,1731694274938,-804.9,9.798e-05,2]
[342287252,1731694274948,-500.0,9.798e-05,2]
[342287253,1731694274958,-686.94,9.798e-05,2]
[342287254,1731694274970,-500.0,9.798e-05,2]
[342287255,1731694274980,-500.0,9.798e-05,2]
[342287256,1731694274989,-1406.25,9.798e-05,2]
[342287257,1731694274998,-500.0,9.798e-05,2]
[342287258,1731694275008,-500.0,9.798e-05,2]
[342287259,1731694275017,-500.0,9.798e-05,2]
[342287260,1731694275027,-500.0,9.798e-05,2]
[342287261,1731694275037,-537.74,9.798e-05,2]
[342287262,1731694275049,-500.0,9.798e-05,2]
[342287263,1731694275059,-500.0,9.798e-05,2]
[342287264,1731694275069,-1332.93,9.798e-05,2]
[342287265,1731694275078,-500.0,9.798e-05,2]
[342287266,1731694275088,-500.0,9.798e-05,2]
[342287267,1731694275097,-500.0,9.798e-05,2]
[342287268,1731694275107,-500.0,9.798e-05,2]
[342287269,1731694275117,-500.0,9.798e-05,2]
[342287270,1731694275126,-500.0,9.798e-05,2]
[342287271,1731694275136,-500.0,9.798e-05,2]
[342287272,1731694275146,-500.0,9.798e-05,2]
[342287273,1731694275155,-500.0,9.798e-05,2]
[342287274,1731694275164,-1122.18,9.798e-05,2]
[342287275,1731694275174,-500.0,9.798e-05,2]
[342287276,1731694275183,-500.0,9.798e-05,2]
[342287277,1731694275194,-1280.83,9.798e-05,2]
[342287278,1731694275203,-500.0,9.798e-05,2]
[342287279,1731694275212,-580.24,9.798e-05,2]
[342287280,1731694275222,-500.0,9.798e-05,2]
[342287281,1731694275231,-500.0,9.798e-05,2]
[342287282,1731694275242,-500.0,9.798e-05,2]
[342287283,1731694275251,-500.0,9.798e-05,2]
[342287284,1731694275260,-805.79,9.798e-05,2]
[342287285,1731694275270,-601.4,9.798e-05,2]
[342287286,1731694275279,-500.0,9.798e-05,2]
[342287287,1731694275289,-500.0,9.798e-05,2]
[342287288,1731694275299,-500.0,9.798e-05,2]
[342287289,1731694275309,-500.0,9.798e-05,2]
[342287290,1731694275319,-500.0,9.798e-05,2]
[342287291,1731694275328,-896.57,9.798e-05,2]
[342287292,1731694275338,-500.0,9.798e-05,2]
[342287293,1731694275347,-672.8,9.798e-05,2]
[342287294,1731694275357,-500.0,9.798e-05,2]
[342287295,1731694275366,-500.0,9.798e-05,2]
[342287296,1731694275375,-634.01,9.798e-05,2]
[342287297,1731694275384,-1106.42,9.798e-05,2]
[342287298,1731694275394,-745.89,9.798e-05,2]
[342287299,1731694275403,-984.12,9.798e-05,2]
[342287300,1731694275412,-500.0,9.798e-05,2]
[342287301,1731694275422,-1637.91,9.798e-05,2]
[342287302,1731694275431,-500.0,9.798e-05,2]
[342287303,1731694275441,-500.0,9.798e-05,2]
[342287304,1731694275450,-265.60259071,9.798e-05,2]
[342287305,1731694275459,-737.14,9.798e-05,2]
[342287306,1731694275470,-500.0,9.798e-05,2]
[342287307,1731694275480,-500.0,9.798e-05,2]
[342287308,1731694275490,-952.57,9.798e-05,2]
[342287309,1731694275501,-500.0,9.798e-05,2]
[342287310,1731694275510,-1185.15,9.798e-05,2]
[342287311,1731694275519,-500.0,9.798e-05,2]
[342287312,1731694275531,-774.09,9.798e-05,2]
[342287313,1731694275540,-661.72,9.798e-05,2]
[342287314,1731694275551,-500.0,9.798e-05,2]
[342287315,1731694275560,-1129.6,9.798e-05,2]
[342287316,1731694275569,-500.0,9.798e-05,2]
[342287317,1731694275579,-628.35,9.798e-05,2]
[342287318,1731694275587,-500.0,9.798e-05,2]
[342287319,1731694275595,-500.0,9.798e-05,2]
[342287320,1731694275603,-500.0,9.798e-05,2]
[342287321,1731694275611,-500.0,9.798e-05,2]
[342287322,1731694275620,-506.48,9.798e-05,2]
[342287323,1731694275628,-500.0,9.798e-05,2]
[342287324,1731694275636,-568.09,9.798e-05,2]
[342287325,1731694275645,-749.17,9.798e-05,2]
[342287326,1731694275653,-507.2,9.798e-05,2]
[342287327,1731694275661,-500.0,9.798e-05,2]
[342287328,1731694275670,-500.0,9.798e-05,2]
[342287329,1731694275679,-500.0,9.798e-05,2]
[342287330,1731694275687,-500.0,9.798e-05,2]
[342287331,1731694275696,-500.0,9.798e-05,2]
[342287332,1731694275705,-500.0,9.798e-05,2]
[342287333,1731694275714,-1878.08,9.798e-05,2]
[342287334,1731694275723,-500.0,9.798e-05,2]
[342287335,1731694275732,-500.0,9.798e-05,2]
[342287336,1731694275741,-1826.39,9.798e-05,2]
[342287337,1731694275750,-500.0,9.798e-05,2]
[342287338,1731694275759,-500.0,9.798e-05,2]
[342287339,1731694275767,-500.0,9.798e-05,2]
[342287340,1731694275777,-500.0,9.798e-05,2]
[342287341,1731694275785,-500.0,9.798e-05,2]
[342287342,1731694275796,-500.0,9.798e-05,2]
[342287343,1731694275804,-500.0,9.798e-05,2]
[342287344,1731694275813,-876.48,9.798e-05,2]
[342287345,1731694275822,-482.1415074,9.798e-05,2]
[342287346,1731694275831,-500.0,9.798e-05,2]
[342287347,1731694275840,-500.0,9.798e-05,2]
[342287348,1731694275849,-500.0,9.798e-05,2]
[342287349,1731694275858,-500.0,9.798e-05,2]
[342287350,1731694275866,-868.37,9.798e-05,2]
[342287351,1731694275874,-500.0,9.798e-05,2]
[342287352,1731694275883,-500.0,9.798e-05,2]
[342287353,1731694275892,-500.0,9.798e-05,2]
[342287354,1731694275901,-500.00000001,9.798e-05,2]
[342287355,1731694275910,-500.0,9.798e-05,2]
[342287356,1731694275919,-1016.47,9.798e-05,2]
[342287357,1731694275928,-500.0,9.798e-05,2]
[342287358,1731694275936,-500.0,9.798e-05,2]
[342287359,1731694275945,-533.34,9.798e-05,2]
[342287360,1731694275954,-500.0,9.798e-05,2]
[342287361,1731694275962,-500.0,9.798e-05,2]
[342287362,1731694275975,-500.0,9.798e-05,2]
[342287363,1731694275985,-998.37,9.798e-05,2]
[342287364,1731694275993,-500.0,9.798e-05,2]
[342287365,1731694276003,-640.8,9.798e-05,2]
[342287366,1731694276013,-500.0,9.798e-05,2]
[342287367,1731694276021,-500.0,9.798e-05,2]
[342287368,1731694276030,-500.0,9.798e-05,2]
[342287369,1731694276039,-500.0,9.798e-05,2]
[342287370,1731694276050,-796.68,9.798e-05,2]
[342287371,1731694276061,-511.01,9.798e-05,2]
[342287372,1731694276070,-500.0,9.798e-05,2]
[342287373,1731694276078,-500.0,9.798e-05,2]
[342287374,1731694276086,-500.0,9.798e-05,2]
[342287375,1731694276095,-581.27,9.798e-05,2]
[342287376,1731694276103,-500.0,9.798e-05,2]
[342287377,1731694276112,-500.0,9.798e-05,2]
[342287378,1731694276120,-739.02,9.798e-05,2]
[342287379,1731694276128,-1009.46,9.798e-05,2]
[342287380,1731694276137,-500.0,9.798e-05,2]
[342287381,1731694276145,-500.0,9.798e-05,2]
[342287382,1731694276153,-771.51,9.798e-05,2]
[342287383,1731694276161,-500.0,9.798e-05,2]
[342287384,1731694276169,-500.0,9.798e-05,2]
[342287385,1731694276178,-836.82,9.798e-05,2]
[342287386,1731694276186,-1656.08,9.798e-05,2]
[342287387,1731694276194,-500.0,9.798e-05,2]
[342287388,1731694276202,-1329.24,9.798e-05,2]
[342287389,1731694276210,-714.57,9.798e-05,2]
[342287390,1731694276219,-500.0,9.798e-05,2]
[342287391,1731694276228,-1629.54,9.798e-05,2]
[342287392,1731694276235,-2519.56,9.798e-05,2]
[342287393,1731694276241,-500.0,9.798e-05,2]
[342287394,1731694276248,-681.4,9.798e-05,2]
[342287395,1731694276255,-500.0,9.798e-05,2]
[342287396,1731694276263,-984.27,9.798e-05,2]
[342287397,1731694276271,-715.51,9.798e-05,2]
[342287398,1731694276278,-500.0,9.798e-05,2]
[342287399,1731694276284,-1336.28,9.798e-05,2]
[342287400,1731694276291,-1893.62,9.798e-05,2]
[342287401,1731694276299,-500.0,9.798e-05,2]
[342287402,1731694276305,-922.72,9.798e-05,2]
[342287403,1731694276311,-500.0,9.798e-05,2]
[342287404,1731694276319,-500.0,9.798e-05,2]
[342287405,1731694276325,-500.0,9.798e-05,2]
[342287406,1731694276332,-500.0,9.798e-05,2]
[342287407,1731694276339,-500.0,9.798e-05,2]
[342287408,1731694276347,-300.0,9.798e-05,2]
[342287409,1731694276353,-1411.22,9.798e-05,2]
[342287410,1731694276360,-500.0,9.798e-05,2]
[342287411,1731694276366,-1328.57,9.798e-05,2]
[342287412,1731694276373,-500.0,9.798e-05,2]
[342287413,1731694276379,-929.47,9.798e-05,2]
[342287414,1731694276386,-500.0,9.798e-05,2]
[342287415,1731694276392,-500.0,9.798e-05,2]
[342287416,1731694276399,-462.45838074,9.798e-05,2]
[342287417,1731694276405,-500.0,9.798e-05,2]
[342287418,1731694276412,-800.1,9.798e-05,2]
[342287419,1731694276420,-500.0,9.798e-05,2]
[342287420,1731694276428,-2180.89,9.798e-05,2]
[342287421,1731694276435,-500.0,9.798e-05,2]
[342287422,1731694276442,-500.0,9.798e-05,2]
[342287423,1731694276450,-500.0,9.798e-05,2]
[342287424,1731694276457,-500.0,9.798e-05,2]
[342287425,1731694276464,-502.62881158,9.798e-05,2]
[342287426,1731694276471,-500.0,9.798e-05,2]
[342287427,1731694276478,-1352.86,9.798e-05,2]
[342287428,1731694276484,-568.46,9.798e-05,2]
[342287429,1731694276491,-500.0,9.798e-05,2]
[342287430,1731694276497,-500.0,9.798e-05,2]
[342287431,1731694276505,-594.49,9.798e-05,2]
[342287432,1731694276512,-500.0,9.798e-05,2]
[342287433,1731694276519,-1131.47,9.798e-05,2]
[342287434,1731694276526,-1764.81,9.798e-05,2]
[342287435,1731694276533,-845.94,9.798e-05,2]
[342287436,1731694276540,-500.0,9.798e-05,2]
[342287437,1731694276548,-563.49,9.798e-05,2]
[342287438,1731694276554,-543.4348083,9.798e-05,2]
[342287439,1731694276562,-500.0,9.798e-05,2]
[342287440,1731694276571,-1549.03,9.798e-05,2]
[342287441,1731694276580,-500.0,9.798e-05,2]
[342287442,1731694276589,-500.0,9.798e-05,2]
[342287443,1731694276599,-500.0,9.798e-05,2]
[342287444,1731694276608,-1026.62,9.798e-05,2]
[342287445,1731694276618,-500.0,9.798e-05,2]
[342287446,1731694276628,-1501.77,9.798e-05,2]
[342287447,1731694276637,-500.0,9.798e-05,2]
[342287448,1731694276991,-500.0,9.798e-05,2]
[342287449,1731694277006,-500.0,9.798e-05,2]
[342287450,1731694277016,-500.0,9.798e-05,2]
[342287451,1731694277026,-500.0,9.798e-05,2]
[342287452,1731694277035,-976.1,9.798e-05,2]
[342287453,1731694277047,-176.4847451,9.798e-05,2]
[342287454,1731694277056,-2064.55,9.798e-05,2]
[342287455,1731694277066,-500.0,9.798e-05,2]
[342287456,1731694277076,-1122.03,9.798e-05,2]
[342287457,1731694277085,-500.0,9.798e-05,2]
[342287458,1731694277095,-717.57,9.798e-05,2]
[342287459,1731694277104,-1094.39,9.798e-05,2]
[342287460,1731694277114,-500.0,9.798e-05,2]
[342287461,1731694277124,-298.12,9.798e-05,2]
[342287462,1731694277134,-500.0,9.798e-05,2]
[342287463,1731694277143,-576.82,9.798e-05,2]
[342287464,1731694277153,-500.0,9.798e-05,2]
[342287465,1731694277163,-500.0,9.798e-05,2]
[342287466,1731694277173,-500.0,9.798e-05,2]
[342287467,1731694277183,-500.0,9.798e-05,2]
[342287468,1731694277192,-500.0,9.798e-05,2]
[342287469,1731694277202,-656.86,9.798e-05,2]
[342287470,1731694277212,-500.0,9.798e-05,2]
[342287471,1731694277222,-2966.56,9.798e-05,2]
[342287472,1731694277232,-500.0,9.798e-05,2]
[342287473,1731694277242,-1035.76,9.798e-05,2]
[342287474,1731694277252,-635.00891431,9.798e-05,2]
[342287475,1731694277261,-500.0,9.798e-05,2]
[342287476,1731694277271,-500.0,9.798e-05,2]
[342287477,1731694277281,-500.0,9.798e-05,2]
[342287478,1731694277291,-1788.75,9.798e-05,2]
[342287479,1731694277305,-5604.37,9.798e-05,2]
[342287480,1731694277315,-500.0,9.798e-05,2]
[342287481,1731694277325,-500.0,9.798e-05,2]
[342287482,1731694277335,-3048.91,9.798e-05,2]
[342287483,1731694277345,-572.97,9.798e-05,2]
[342287484,1731694277354,-749.17,9.798e-05,2]
[342287485,1731694277364,-858.99,9.798e-05,2]
[342287486,1731694277374,-500.0,9.798e-05,2]
[342287487,1731694277384,-500.0,9.798e-05,2]
[342287488,1731694277394,-982.65,9.798e-05,2]
[342287489,1731694277404,-436.57108625,9.798e-05,2]
[342287490,1731694277414,-793.52,9.798e-05,2]
[342287491,1731694277424,-4678.34,9.798e-05,2]
[342287492,1731694277434,-1121.36,9.798e-05,2]
[342287493,1731694277444,-1658.95,9.798e-05,2]
[342287494,1731694277454,-1637.22,9.798e-05,2]
[342287495,1731694277464,-742.68,9.798e-05,2]
[342287496,1731694277474,-761.57,9.798e-05,2]
[342287497,1731694277484,-500.0,9.798e-05,2]
[342287498,1731694277493,-500.0,9.798e-05,2]
[342287499,1731694277503,-1231.41,9.798e-05,2]
[342287500,1731694277513,-500.0,9.798e-05,2]
[342287501,1731694277524,-563.0,9.798e-05,2]
[342287502,1731694277534,-500.0,9.798e-05,2]
[342287503,1731694277544,-3294.6,9.798e-05,2]
[342287504,1731694277555,-500.0,9.798e-05,2]
[342287505,1731694277565,-2190.64,9.798e-05,2]
[342287506,1731694277575,-1366.19,9.798e-05,2]
[342287507,1731694277585,-588.38,9.798e-05,2]
[342287508,1731694277594,-862.18,9.798e-05,2]
[342287509,1731694277604,-1917.6,9.798e-05,2]
[342287510,1731694277614,-554.90454883,9.798e-05,2]
[342287511,1731694277625,-616.35,9.798e-05,2]
[342287512,1731694277634,-1345.85,9.798e-05,2]
[342287513,1731694277645,-500.0,9.798e-05,2]
[342287514,1731694277654,-4078.51,9.798e-05,2]
[342287515,1731694277664,-1395.4,9.798e-05,2]
[342287516,1731694277675,-713.44,9.798e-05,2]
[342287517,1731694277685,-504.75,9.798e-05,2]
[342287518,1731694277695,-1186.42,9.798e-05,2]
[342287519,1731694277705,-926.9,9.798e-05,2]
[342287520,1731694277714,-820.01,9.798e-05,2]
[342287521,1731694277725,-1214.64,9.798e-05,2]
[342287522,1731694277734,-500.0,9.798e-05,2]
[342287523,1731694277743,-500.0,9.798e-05,2]
[342287524,1731694277753,-1482.6,9.798e-05,2]
[342287525,1731694277762,-1100.45,9.798e-05,2]
[342287526,1731694277771,-879.08,9.798e-05,2]
[342287527,1731694277780,-500.0,9.798e-05,2]
[342287528,1731694277790,-500.0,9.798e-05,2]
[342287529,1731694277800,-1931.56,9.798e-05,2]
[342287530,1731694277810,-550.27,9.798e-05,2]
[342287531,1731694277819,-500.0,9.798e-05,2]
[342287532,1731694277828,-500.0,9.798e-05,2]
[342287533,1731694277838,-731.29,9.798e-05,2]
[342287534,1731694277849,-500.0,9.799e-05,2]
[342287535,1731694277859,-500.0,9.799e-05,2]
[342287536,1731694277869,-634.51,9.799e-05,2]
[342287537,1731694277879,-2595.98,9.799e-05,2]
[342287538,1731694277889,-1015.68,9.799e-05,2]
[342287539,1731694277899,-500.0,9.799e-05,2]
[342287540,1731694277909,-500.0,9.799e-05,2]
[342287541,1731694277918,-500.0,9.799e-05,2]
[342287542,1731694277928,-500.0,9.799e-05,2]
[342287543,1731694277939,-1698.94,9.799e-05,2]
[342287544,1731694277949,-500.0,9.799e-05,2]
[342287545,1731694277958,-500.0,9.799e-05,2]
[342287546,1731694277971,-317.11387822,9.799e-05,2]
[342287547,1731694277980,-500.0,9.799e-05,2]
[342287548,1731694277991,-500.0,9.799e-05,2]
[342287549,1731694278002,-500.0,9.799e-05,2]
[342287550,1731694278013,-540.79,9.799e-05,2]
[342287551,1731694278023,-673.41,9.799e-05,2]
[342287552,1731694278033,-150.0,9.801e-05,2]
[342287553,1731694278044,-150.0,9.808e-05,2]
[342287554,1731694278057,-150.0,9.82e-05,2]
[342287555,1731694278067,-150.0,9.821e-05,2]
[342287556,1731694278077,-150.0,9.822e-05,2]
[342287557,1731694278088,-150.0,9.826e-05,2]
[342287558,1731694278098,-150.0,9.83e-05,2]
[342287559,1731694278108,-150.0,9.835e-05,2]
[342287560,1731694278118,-150.0,9.841e-05,2]
[342287561,1731694278128,-150.0,9.852e-05,2]
[342287562,1731694278139,-150.0,9.855e-05,2]
[342287563,1731694278149,-150.0,9.856e-05,2]
[342287564,1731694278159,-513.0,9.863e-05,2]
[342287565,1731694278169,-150.0,9.865e-05,2]
[342287566,1731694278180,-150.0,9.871e-05,2]
[342287567,1731694278190,-154.19041001,9.872e-05,2]
[342287568,1731694278200,-297.15,9.873e-05,2]